[Event "I.A Hrvatska šahovska liga"]
[Site "Veli Lošinj, Croatia"]
[Date "2024.10.05"]
[Round "1.18"]
[White "Rubil, Marko"]
[Black "Colev, Ivor"]
[Result "1-0"]
[TimeControl "90 30 40 30"]
[WhiteFideId "14501546"]
[BlackFideId "14545705"]
[WhiteElo "2233"]
[BlackElo "2160"]

1. e4 {[%clk 01:30:57]} {[%emt 00:00:03]} c5 {[%clk 01:30:25]} {[%emt
00:00:36]} 2. Nf3 {[%clk 01:31:17]} {[%emt 00:00:09]} d6 {[%clk 01:30:38]}
{[%emt 00:00:17]} 3. d4 {[%clk 01:31:41]} {[%emt 00:00:06]} cxd4 {[%clk
01:31:04]} {[%emt 00:00:05]} 4. Nxd4 {[%clk 01:32:06]} {[%emt 00:00:05]} Nf6
{[%clk 01:31:30]} {[%emt 00:00:04]} 5. Nc3 {[%clk 01:32:23]} {[%emt 00:00:13]}
a6 {[%clk 01:31:50]} {[%emt 00:00:10]} 6. Bg5 {[%clk 01:32:45]} {[%emt
00:00:08]} Nbd7 {[%clk 01:32:11]} {[%emt 00:00:08]} 7. Bc4 {[%clk 01:32:44]}
{[%emt 00:00:31]} Qb6 {[%clk 01:32:34]} {[%emt 00:00:08]} 8. Bb3 {[%clk
01:18:31]} {[%emt 00:14:42]} e6 {[%clk 01:32:34]} {[%emt 00:00:30]} 9. Qd2
{[%clk 01:11:37]} {[%emt 00:07:25]} Be7 {[%clk 01:32:55]} {[%emt 00:00:09]} 10.
O-O-O {[%clk 01:05:39]} {[%emt 00:06:28]} Nc5 {[%clk 01:32:15]} {[%emt
00:01:10]} 11. Rhe1 {[%clk 01:04:38]} {[%emt 00:01:31]} Bd7 {[%clk 01:26:38]}
{[%emt 00:06:07]} 12. Kb1 {[%clk 01:04:55]} {[%emt 00:00:13]} Qc7 {[%clk
01:13:31]} {[%emt 00:13:36]} 13. f4 {[%clk 00:34:38]} {[%emt 00:30:47]} h6
{[%clk 01:08:52]} {[%emt 00:05:10]} 14. Bxf6 {[%clk 00:34:59]} {[%emt
00:00:08]} Bxf6 {[%clk 01:05:15]} {[%emt 00:04:08]} 15. Nf3 {[%clk 00:27:11]}
{[%emt 00:08:18]} O-O-O {[%clk 00:32:54]} {[%emt 00:32:51]} 16. e5 {[%clk
00:10:14]} {[%emt 00:17:27]} dxe5 {[%clk 00:33:04]} {[%emt 00:00:19]} 17. Nxe5
{[%clk 00:10:20]} {[%emt 00:00:25]} Bc6 {[%clk 00:25:19]} {[%emt 00:08:14]} 18.
Qe2 {[%clk 00:09:00]} {[%emt 00:01:50]} Kb8 {[%clk 00:20:56]} {[%emt 00:04:54]}
19. g3 {[%clk 00:09:02]} {[%emt 00:00:28]} Rxd1+ {[%clk 00:13:04]} {[%emt
00:08:21]} 20. Nxd1 {[%clk 00:06:59]} {[%emt 00:02:33]} Rc8 {[%clk 00:12:36]}
{[%emt 00:00:58]} 21. Nf2 {[%clk 00:06:45]} {[%emt 00:00:45]} Bb5 {[%clk
00:08:59]} {[%emt 00:04:07]} 22. Bc4 {[%clk 00:05:22]} {[%emt 00:01:53]} Bxe5
{[%clk 00:07:06]} {[%emt 00:02:22]} 23. fxe5 {[%clk 00:04:27]} {[%emt
00:01:26]} Bxc4 {[%clk 00:04:05]} {[%emt 00:03:31]} 24. Qxc4 {[%clk 00:04:54]}
{[%emt 00:00:02]} Rd8 {[%clk 00:04:07]} {[%emt 00:00:28]} 25. b4 {[%clk
00:01:23]} {[%emt 00:04:01]} Nd7 {[%clk 00:02:17]} {[%emt 00:02:20]} 26. Qxc7+
{[%clk 00:01:09]} {[%emt 00:00:45]} Kxc7 {[%clk 00:02:39]} {[%emt 00:00:08]} 27.
Nd3 {[%clk 00:01:37]} {[%emt 00:00:02]} Nb6 {[%clk 00:01:18]} {[%emt 00:01:50]}
28. Rf1 {[%clk 00:01:52]} {[%emt 00:00:15]} Rd7 {[%clk 00:01:21]} {[%emt
00:00:27]} 29. Nc5 {[%clk 00:02:21]} {[%emt 00:00:02]} Re7 {[%clk 00:01:36]}
{[%emt 00:00:14]} 30. Rf4 {[%clk 00:00:52]} {[%emt 00:01:59]} Nd7 {[%clk
00:00:45]} {[%emt 00:01:22]} 31. Nd3 {[%clk 00:01:07]} {[%emt 00:00:14]} f6
{[%clk 00:00:46]} {[%emt 00:00:29]} 32. exf6 {[%clk 00:01:05]} {[%emt
00:00:33]} gxf6 {[%clk 00:01:03]} {[%emt 00:00:12]} 33. Rh4 {[%clk 00:01:19]}
{[%emt 00:00:17]} Rh7 {[%clk 00:00:43]} {[%emt 00:00:49]} 34. c4 {[%clk
00:01:01]} {[%emt 00:00:48]} e5 {[%clk 00:00:51]} {[%emt 00:00:23]} 35. Kc2
{[%clk 00:01:02]} {[%emt 00:00:29]} Kd6 {[%clk 00:01:13]} {[%emt 00:00:08]} 36.
g4 {[%clk 00:00:40]} {[%emt 00:00:52]} e4 {[%clk 00:00:43]} {[%emt 00:01:00]}
37. Nf4 {[%clk 00:00:59]} {[%emt 00:00:11]} Ke5 {[%clk 00:00:52]} {[%emt
00:00:20]} 38. Ne2 {[%clk 00:00:37]} {[%emt 00:00:53]} Nf8 {[%clk 00:00:53]}
{[%emt 00:00:29]} 39. Rh5+ {[%clk 00:01:01]} {[%emt 00:00:06]} Kd6 {[%clk
00:00:47]} {[%emt 00:00:35]} 40. c5+ {[%clk 00:30:38]} {[%emt 00:00:54]} Ke7
{[%clk 00:30:34]} {[%emt 00:00:42]} 41. Ng3 {[%clk 00:25:08]} {[%emt 00:06:00]}
Ng6 {[%clk 00:20:03]} {[%emt 00:11:00]} 42. Nxe4 {[%clk 00:24:36]} {[%emt
00:01:03]} Ne5 {[%clk 00:19:32]} {[%emt 00:01:01]} 43. h3 {[%clk 00:24:51]}
{[%emt 00:00:16]} Ke6 {[%clk 00:08:55]} {[%emt 00:11:06]} 44. a3 {[%clk
00:19:54]} {[%emt 00:05:27]} Ng6 {[%clk 00:07:56]} {[%emt 00:01:29]} 45. Rf5
{[%clk 00:17:54]} {[%emt 00:02:30]} Nh4 {[%clk 00:05:44]} {[%emt 00:02:42]} 46.
Rh5 {[%clk 00:15:10]} {[%emt 00:03:13]} Ng2 {[%clk 00:03:19]} {[%emt 00:02:56]}
47. Nf2 {[%clk 00:14:42]} {[%emt 00:00:58]} Kf7 {[%clk 00:02:52]} {[%emt
00:00:56]} 48. Kc3 {[%clk 00:11:46]} {[%emt 00:03:26]} Kg6 {[%clk 00:03:05]}
{[%emt 00:00:18]} 49. Rf5 {[%clk 00:04:46]} {[%emt 00:07:28]} Re7 {[%clk
00:03:27]} {[%emt 00:00:09]} 50. Nd3 {[%clk 00:04:51]} {[%emt 00:00:25]} Re3
{[%clk 00:02:50]} {[%emt 00:01:07]} 51. Kd4 {[%clk 00:05:11]} {[%emt 00:00:11]}
Rg3 {[%clk 00:02:17]} {[%emt 00:01:03]} 52. a4 {[%clk 00:02:41]} {[%emt
00:02:59]} Nh4 {[%clk 00:02:11]} {[%emt 00:00:37]} 53. Nf4+ {[%clk 00:02:52]}
{[%emt 00:00:20]} Kf7 {[%clk 00:02:23]} {[%emt 00:00:18]} 54. Rxf6+ {[%clk
00:03:14]} {[%emt 00:00:08]} Kxf6 {[%clk 00:02:15]} {[%emt 00:00:37]} 55. Nh5+
{[%clk 00:03:39]} {[%emt 00:00:05]} Kg5 {[%clk 00:02:34]} {[%emt 00:00:11]} 56.
Nxg3 {[%clk 00:04:06]} {[%emt 00:00:03]} Nf3+ {[%clk 00:02:49]} {[%emt
00:00:15]} 57. Kd5 {[%clk 00:03:30]} {[%emt 00:01:06]} Ng1 {[%clk 00:03:07]}
{[%emt 00:00:12]} 58. Ne4 {[%clk 00:01:27]} {[%emt 00:02:33]} Kf4 {[%clk
00:03:25]} {[%emt 00:00:12]} 59. b5 {[%clk 00:01:34]} {[%emt 00:00:23]} 1-0

[Event "I.A Hrvatska šahovska liga"]
[Site "Veli Lošinj, Croatia"]
[Date "2024.10.05"]
[Round "1.19"]
[White "Moroni, Luca Jr"]
[Black "Postny, Evgeny"]
[Result "1-0"]
[TimeControl "90 30 40 30"]
[WhiteFideId "865834"]
[BlackFideId "2804344"]
[WhiteElo "2558"]
[BlackElo "2577"]

1. d4 {[%clk 01:30:55]} {[%emt 00:00:03]} d5 {[%clk 01:30:07]} {[%emt
00:00:54]} 2. c4 {[%clk 01:31:18]} {[%emt 00:00:07]} e6 {[%clk 01:30:25]}
{[%emt 00:00:12]} 3. Nc3 {[%clk 01:31:38]} {[%emt 00:00:10]} Be7 {[%clk
01:30:40]} {[%emt 00:00:15]} 4. cxd5 {[%clk 01:31:57]} {[%emt 00:00:11]} exd5
{[%clk 01:31:04]} {[%emt 00:00:06]} 5. Bf4 {[%clk 01:32:22]} {[%emt 00:00:05]}
c6 {[%clk 01:31:17]} {[%emt 00:00:16]} 6. e3 {[%clk 01:32:23]} {[%emt
00:00:30]} Bf5 {[%clk 01:31:31]} {[%emt 00:00:15]} 7. Nge2 {[%clk 01:32:14]}
{[%emt 00:00:41]} Nd7 {[%clk 01:30:25]} {[%emt 00:01:35]} 8. Ng3 {[%clk
01:28:57]} {[%emt 00:03:46]} Bg6 {[%clk 01:29:27]} {[%emt 00:01:28]} 9. Rc1
{[%clk 01:24:30]} {[%emt 00:04:58]} Ngf6 {[%clk 01:24:57]} {[%emt 00:05:00]} 10.
h4 {[%clk 01:20:57]} {[%emt 00:04:03]} h5 {[%clk 01:23:32]} {[%emt 00:01:55]}
11. Be2 {[%clk 01:19:29]} {[%emt 00:01:59]} Nb6 {[%clk 01:16:23]} {[%emt
00:07:38]} 12. Bg5 {[%clk 01:11:30]} {[%emt 00:08:29]} Ne4 {[%clk 01:08:14]}
{[%emt 00:08:39]} 13. Ncxe4 {[%clk 01:06:21]} {[%emt 00:05:39]} Bxe4 {[%clk
01:06:18]} {[%emt 00:02:25]} 14. Nxe4 {[%clk 00:58:12]} {[%emt 00:08:40]} dxe4
{[%clk 01:06:28]} {[%emt 00:00:20]} 15. Qc2 {[%clk 00:53:27]} {[%emt 00:05:16]}
f5 {[%clk 01:05:23]} {[%emt 00:01:34]} 16. Qb3 {[%clk 00:47:32]} {[%emt
00:06:25]} Qd5 {[%clk 00:43:40]} {[%emt 00:22:13]} 17. Bc4 {[%clk 00:37:38]}
{[%emt 00:10:24]} Qa5+ {[%clk 00:27:36]} {[%emt 00:16:34]} 18. Ke2 {[%clk
00:36:05]} {[%emt 00:02:03]} Nxc4 {[%clk 00:25:43]} {[%emt 00:02:22]} 19. Qxc4
{[%clk 00:31:29]} {[%emt 00:05:06]} Bxg5 {[%clk 00:24:46]} {[%emt 00:01:27]} 20.
hxg5 {[%clk 00:31:12]} {[%emt 00:00:48]} O-O-O {[%clk 00:25:10]} {[%emt
00:00:05]} 21. b4 {[%clk 00:27:22]} {[%emt 00:04:20]} Qd5 {[%clk 00:17:07]}
{[%emt 00:08:33]} 22. b5 {[%clk 00:27:08]} {[%emt 00:00:46]} Qxc4+ {[%clk
00:16:36]} {[%emt 00:01:00]} 23. Rxc4 {[%clk 00:27:33]} {[%emt 00:00:05]} Kd7
{[%clk 00:15:12]} {[%emt 00:01:54]} 24. Rb1 {[%clk 00:22:30]} {[%emt 00:05:32]}
Rb8 {[%clk 00:14:58]} {[%emt 00:00:43]} 25. Kd2 {[%clk 00:09:15]} {[%emt
00:13:47]} Rhc8 {[%clk 00:14:33]} {[%emt 00:00:54]} 26. Ra4 {[%clk 00:08:00]}
{[%emt 00:01:46]} c5 {[%clk 00:14:11]} {[%emt 00:00:52]} 27. Rxa7 {[%clk
00:05:50]} {[%emt 00:02:40]} cxd4 {[%clk 00:13:41]} {[%emt 00:01:00]} 28. exd4
{[%clk 00:06:18]} {[%emt 00:00:02]} Rc4 {[%clk 00:12:43]} {[%emt 00:01:28]} 29.
Ke3 {[%clk 00:06:35]} {[%emt 00:00:13]} g6 {[%clk 00:11:09]} {[%emt 00:02:04]}
30. a4 {[%clk 00:06:03]} {[%emt 00:01:02]} Kd6 {[%clk 00:10:13]} {[%emt
00:01:26]} 31. Rb3 {[%clk 00:04:31]} {[%emt 00:02:02]} Kd5 {[%clk 00:05:08]}
{[%emt 00:05:34]} 32. a5 {[%clk 00:04:36]} {[%emt 00:00:26]} Rc2 {[%clk
00:05:02]} {[%emt 00:00:36]} 33. g3 {[%clk 00:03:51]} {[%emt 00:01:15]} Kc4
{[%clk 00:04:19]} {[%emt 00:01:13]} 34. Rb1 {[%clk 00:04:05]} {[%emt 00:00:16]}
Rc3+ {[%clk 00:04:44]} {[%emt 00:00:06]} 35. Ke2 {[%clk 00:04:06]} {[%emt
00:00:28]} Rc2+ {[%clk 00:04:19]} {[%emt 00:00:55]} 36. Kf1 {[%clk 00:03:52]}
{[%emt 00:00:44]} Kxd4 {[%clk 00:02:42]} {[%emt 00:02:07]} 37. a6 {[%clk
00:03:26]} {[%emt 00:00:56]} bxa6 {[%clk 00:02:49]} {[%emt 00:00:23]} 38. Rd1+
{[%clk 00:02:49]} {[%emt 00:01:07]} Kc3 {[%clk 00:01:47]} {[%emt 00:01:31]} 39.
bxa6 {[%clk 00:02:52]} {[%emt 00:00:27]} e3 {[%clk 00:00:59]} {[%emt 00:01:18]}
40. Rc7+ {[%clk 00:31:16]} {[%emt 00:02:06]} Kb2 {[%clk 00:31:06]} {[%emt
00:00:24]} 41. Rb7+ {[%clk 00:25:49]} {[%emt 00:05:57]} Kc3 {[%clk 00:30:26]}
{[%emt 00:01:10]} 42. Rc7+ {[%clk 00:16:47]} {[%emt 00:09:31]} Kb2 {[%clk
00:30:50]} {[%emt 00:00:06]} 43. Rxc2+ {[%clk 00:13:21]} {[%emt 00:03:56]} Kxc2
{[%clk 00:31:15]} {[%emt 00:00:05]} 44. Ra1 {[%clk 00:13:47]} {[%emt 00:00:04]}
exf2 {[%clk 00:27:08]} {[%emt 00:04:37]} 45. Kxf2 {[%clk 00:13:16]} {[%emt
00:01:01]} Kc3 {[%clk 00:27:18]} {[%emt 00:00:21]} 46. a7 {[%clk 00:12:13]}
{[%emt 00:01:33]} Ra8 {[%clk 00:27:43]} {[%emt 00:00:04]} 47. Ke3 {[%clk
00:12:29]} {[%emt 00:00:15]} Kc4 {[%clk 00:27:51]} {[%emt 00:00:21]} 48. Kf4
{[%clk 00:11:49]} {[%emt 00:01:11]} Kd5 {[%clk 00:28:01]} {[%emt 00:00:20]} 49.
Ra6 {[%clk 00:11:46]} {[%emt 00:00:33]} Kd4 {[%clk 00:28:15]} {[%emt 00:00:15]}
50. Rxg6 {[%clk 00:05:00]} {[%emt 00:07:16]} Rxa7 {[%clk 00:28:41]} {[%emt
00:00:06]} 51. Rd6+ {[%clk 00:05:26]} {[%emt 00:00:03]} Kc5 {[%clk 00:28:56]}
{[%emt 00:00:15]} 52. Rd3 {[%clk 00:05:11]} {[%emt 00:00:45]} Kc4 {[%clk
00:27:58]} {[%emt 00:01:28]} 53. Rd1 {[%clk 00:05:00]} {[%emt 00:00:41]} 1-0

[Event "I.A Hrvatska šahovska liga"]
[Site "Veli Lošinj, Croatia"]
[Date "2024.10.05"]
[Round "1.20"]
[White "Bosiocic, Marin"]
[Black "Stevic, Hrvoje"]
[Result "0-1"]
[TimeControl "90 30 40 30"]
[WhiteFideId "14507927"]
[BlackFideId "14502569"]
[WhiteElo "2555"]
[BlackElo "2531"]

1. e4 {[%clk 01:30:59]} {[%emt 00:00:01]} e5 {[%clk 01:28:33]} {[%emt
00:02:27]} 2. Nf3 {[%clk 01:31:22]} {[%emt 00:00:06]} Nc6 {[%clk 01:28:55]}
{[%emt 00:00:08]} 3. Bb5 {[%clk 01:31:45]} {[%emt 00:00:07]} a6 {[%clk
01:28:40]} {[%emt 00:00:45]} 4. Ba4 {[%clk 01:32:09]} {[%emt 00:00:07]} Nf6
{[%clk 01:28:55]} {[%emt 00:00:15]} 5. d3 {[%clk 01:32:32]} {[%emt 00:00:06]}
d6 {[%clk 01:28:56]} {[%emt 00:00:29]} 6. c3 {[%clk 01:32:53]} {[%emt
00:00:09]} g6 {[%clk 01:28:48]} {[%emt 00:00:38]} 7. O-O {[%clk 01:33:14]}
{[%emt 00:00:09]} Bg7 {[%clk 01:29:12]} {[%emt 00:00:06]} 8. Re1 {[%clk
01:33:37]} {[%emt 00:00:08]} O-O {[%clk 01:29:23]} {[%emt 00:00:18]} 9. Nbd2
{[%clk 01:34:00]} {[%emt 00:00:07]} h6 {[%clk 01:27:12]} {[%emt 00:02:42]} 10.
h3 {[%clk 01:29:13]} {[%emt 00:05:16]} Re8 {[%clk 01:21:39]} {[%emt 00:06:02]}
11. d4 {[%clk 01:27:02]} {[%emt 00:02:42]} b5 {[%clk 01:19:03]} {[%emt
00:03:06]} 12. Bc2 {[%clk 01:27:18]} {[%emt 00:00:13]} Bb7 {[%clk 01:08:37]}
{[%emt 00:10:57]} 13. a3 {[%clk 01:24:08]} {[%emt 00:03:40]} Nb8 {[%clk
01:01:53]} {[%emt 00:07:14]} 14. b4 {[%clk 01:21:33]} {[%emt 00:03:05]} Nbd7
{[%clk 01:01:45]} {[%emt 00:00:38]} 15. Bb2 {[%clk 01:20:12]} {[%emt 00:01:51]}
d5 {[%clk 00:54:59]} {[%emt 00:07:17]} 16. Nxe5 {[%clk 01:08:57]} {[%emt
00:11:44]} Nxe5 {[%clk 00:39:45]} {[%emt 00:15:44]} 17. dxe5 {[%clk 01:08:08]}
{[%emt 00:01:19]} Nxe4 {[%clk 00:40:12]} {[%emt 00:00:03]} 18. f4 {[%clk
01:08:18]} {[%emt 00:00:20]} g5 {[%clk 00:40:09]} {[%emt 00:00:33]} 19. Nxe4
{[%clk 01:05:53]} {[%emt 00:02:56]} dxe4 {[%clk 00:40:12]} {[%emt 00:00:27]} 20.
c4 {[%clk 01:05:13]} {[%emt 00:01:09]} gxf4 {[%clk 00:15:59]} {[%emt 00:24:43]}
21. Bxe4 {[%clk 01:05:25]} {[%emt 00:00:19]} Bxe4 {[%clk 00:16:18]} {[%emt
00:00:11]} 22. Rxe4 {[%clk 01:05:41]} {[%emt 00:00:13]} Qxd1+ {[%clk 00:10:35]}
{[%emt 00:06:13]} 23. Rxd1 {[%clk 01:06:02]} {[%emt 00:00:09]} bxc4 {[%clk
00:07:23]} {[%emt 00:03:42]} 24. Rd7 {[%clk 00:58:47]} {[%emt 00:07:45]} Red8
{[%clk 00:01:32]} {[%emt 00:06:21]} 25. Rxc7 {[%clk 00:58:58]} {[%emt
00:00:19]} Rd1+ {[%clk 00:01:55]} {[%emt 00:00:08]} 26. Kf2 {[%clk 00:58:52]}
{[%emt 00:00:35]} Rd2+ {[%clk 00:02:22]} {[%emt 00:00:04]} 27. Re2 {[%clk
00:59:17]} {[%emt 00:00:05]} Rxb2 {[%clk 00:02:51]} 0-1

[Event "I.A Hrvatska šahovska liga"]
[Site "Veli Lošinj, Croatia"]
[Date "2024.10.05"]
[Round "1.21"]
[White "Palac, Mladen"]
[Black "Galic, Ivan"]
[Result "1/2-1/2"]
[TimeControl "90 30 40 30"]
[WhiteFideId "14500116"]
[BlackFideId "14402238"]
[WhiteElo "2464"]
[BlackElo "2418"]

1. e4 {[%clk 01:30:58]} {[%emt 00:00:01]} c5 {[%clk 01:30:53]} {[%emt
00:00:07]} 2. Nf3 {[%clk 01:31:23]} {[%emt 00:00:05]} e6 {[%clk 01:31:15]}
{[%emt 00:00:09]} 3. d4 {[%clk 01:31:24]} {[%emt 00:00:29]} cxd4 {[%clk
01:31:35]} {[%emt 00:00:10]} 4. Nxd4 {[%clk 01:31:52]} {[%emt 00:00:02]} Nf6
{[%clk 01:31:26]} {[%emt 00:00:38]} 5. Bd3 {[%clk 01:30:31]} {[%emt 00:01:51]}
Nc6 {[%clk 01:29:57]} {[%emt 00:01:59]} 6. Nxc6 {[%clk 01:30:56]} {[%emt
00:00:06]} dxc6 {[%clk 01:28:04]} {[%emt 00:02:23]} 7. O-O {[%clk 01:27:19]}
{[%emt 00:04:07]} e5 {[%clk 01:27:57]} {[%emt 00:00:37]} 8. Nd2 {[%clk
01:27:44]} {[%emt 00:00:04]} Qc7 {[%clk 01:24:00]} {[%emt 00:04:27]} 9. Qe2
{[%clk 01:06:22]} {[%emt 00:21:53]} Be7 {[%clk 01:16:23]} {[%emt 00:08:06]} 10.
a4 {[%clk 01:01:28]} {[%emt 00:05:25]} O-O {[%clk 01:11:07]} {[%emt 00:05:45]}
11. Nb3 {[%clk 00:55:46]} {[%emt 00:06:13]} Re8 {[%clk 01:04:29]} {[%emt
00:07:07]} 12. Be3 {[%clk 00:49:50]} {[%emt 00:06:27]} Ng4 {[%clk 01:02:16]}
{[%emt 00:02:42]} 13. Bd2 {[%clk 00:49:55]} {[%emt 00:00:25]} Nf6 {[%clk
01:02:33]} {[%emt 00:00:12]} 14. Be3 {[%clk 00:48:11]} {[%emt 00:02:18]}
1/2-1/2

[Event "I.A Hrvatska šahovska liga"]
[Site "Veli Lošinj, Croatia"]
[Date "2024.10.05"]
[Round "1.22"]
[White "Antunac, Goran"]
[Black "Zelcic, Robert"]
[Result "0-1"]
[TimeControl "90 30 40 30"]
[WhiteFideId "14500264"]
[BlackFideId "14500310"]
[WhiteElo "2323"]
[BlackElo "2444"]

1. d4 {[%clk 01:30:56]} {[%emt 00:00:02]} Nf6 {[%clk 01:29:25]} {[%emt
00:01:35]} 2. Nf3 {[%clk 01:31:20]} {[%emt 00:00:08]} d5 {[%clk 01:29:50]}
{[%emt 00:00:05]} 3. g3 {[%clk 01:29:06]} {[%emt 00:02:44]} c5 {[%clk
01:27:00]} {[%emt 00:03:20]} 4. Bg2 {[%clk 01:28:34]} {[%emt 00:01:02]} cxd4
{[%clk 01:27:11]} {[%emt 00:00:18]} 5. Nxd4 {[%clk 01:28:58]} {[%emt 00:00:07]}
e5 {[%clk 01:27:06]} {[%emt 00:00:34]} 6. Nb3 {[%clk 01:29:27]} {[%emt
00:00:01]} Be6 {[%clk 01:27:21]} {[%emt 00:00:15]} 7. O-O {[%clk 01:27:36]}
{[%emt 00:02:21]} Be7 {[%clk 01:27:34]} {[%emt 00:00:18]} 8. Nc3 {[%clk
01:27:14]} {[%emt 00:00:52]} O-O {[%clk 01:27:13]} {[%emt 00:00:50]} 9. Bg5
{[%clk 01:20:05]} {[%emt 00:07:39]} Nbd7 {[%clk 01:25:38]} {[%emt 00:02:04]} 10.
e4 {[%clk 01:05:45]} {[%emt 00:14:51]} dxe4 {[%clk 01:08:46]} {[%emt 00:17:22]}
11. Nxe4 {[%clk 01:04:38]} {[%emt 00:01:37]} Nxe4 {[%clk 01:09:10]} {[%emt
00:00:06]} 12. Bxe7 {[%clk 01:04:51]} {[%emt 00:00:18]} Qxe7 {[%clk 01:09:38]}
{[%emt 00:00:02]} 13. Bxe4 {[%clk 01:05:20]} {[%emt 00:00:01]} Nb6 {[%clk
01:10:06]} {[%emt 00:00:01]} 14. Re1 {[%clk 00:50:30]} {[%emt 00:15:21]} Nc4
{[%clk 01:07:42]} {[%emt 00:02:53]} 15. Rb1 {[%clk 00:36:22]} {[%emt 00:14:37]}
f5 {[%clk 00:59:08]} {[%emt 00:09:04]} 16. Bg2 {[%clk 00:34:57]} {[%emt
00:01:55]} Rad8 {[%clk 00:43:20]} {[%emt 00:16:18]} 17. Qe2 {[%clk 00:35:17]}
{[%emt 00:00:11]} a5 {[%clk 00:26:08]} {[%emt 00:17:42]} 18. Rbd1 {[%clk
00:27:52]} {[%emt 00:07:55]} Rxd1 {[%clk 00:23:51]} {[%emt 00:02:47]} 19. Rxd1
{[%clk 00:27:34]} {[%emt 00:00:48]} Nxb2 {[%clk 00:19:39]} {[%emt 00:04:42]} 20.
Rb1 {[%clk 00:27:35]} {[%emt 00:00:28]} Nc4 {[%clk 00:18:13]} {[%emt 00:01:57]}
21. Nd2 {[%clk 00:27:38]} {[%emt 00:00:26]} Nxd2 {[%clk 00:17:03]} {[%emt
00:01:41]} 22. Qxd2 {[%clk 00:28:07]} e4 {[%clk 00:17:25]} {[%emt 00:00:08]} 23.
Qxa5 {[%clk 00:28:25]} {[%emt 00:00:13]} Rc8 {[%clk 00:17:52]} 24. Qa4 {[%clk
00:23:07]} {[%emt 00:05:48]} Qc7 {[%clk 00:15:37]} {[%emt 00:02:42]} 25. Rd1
{[%clk 00:20:32]} {[%emt 00:03:09]} h6 {[%clk 00:16:00]} {[%emt 00:00:06]} 26.
Rc1 {[%clk 00:09:52]} {[%emt 00:11:11]} Qc3 {[%clk 00:15:52]} {[%emt 00:00:34]}
27. Qb5 {[%clk 00:07:30]} {[%emt 00:02:55]} Qd2 {[%clk 00:14:26]} {[%emt
00:01:56]} 28. Qb2 {[%clk 00:07:47]} {[%emt 00:00:14]} Kh7 {[%clk 00:11:17]}
{[%emt 00:03:37]} 29. h4 {[%clk 00:04:33]} {[%emt 00:03:47]} e3 {[%clk
00:10:58]} {[%emt 00:00:49]} 30. fxe3 {[%clk 00:04:52]} {[%emt 00:00:11]} Qxe3+
{[%clk 00:11:19]} {[%emt 00:00:09]} 31. Kh2 {[%clk 00:05:20]} {[%emt 00:00:01]}
Rc3 {[%clk 00:11:37]} {[%emt 00:00:12]} 0-1

[Event "I.A Hrvatska šahovska liga"]
[Site "Veli Lošinj, Croatia"]
[Date "2024.10.05"]
[Round "1.23"]
[White "Petkov, Vladimir"]
[Black "Fucak, Emilio Milko"]
[Result "1-0"]
[TimeControl "90 30 40 30"]
[WhiteFideId "2901188"]
[BlackFideId "14501023"]
[WhiteElo "2414"]
[BlackElo "2212"]

1. d4 {[%clk 01:30:05]} {[%emt 00:00:54]} e6 {[%clk 01:30:53]} {[%emt
00:00:07]} 2. Nf3 {[%clk 01:30:03]} {[%emt 00:00:31]} Nf6 {[%clk 01:30:51]}
{[%emt 00:00:33]} 3. g3 {[%clk 01:30:00]} {[%emt 00:00:32]} b6 {[%clk
01:30:50]} {[%emt 00:00:33]} 4. Bg2 {[%clk 01:30:08]} {[%emt 00:00:21]} Bb7
{[%clk 01:30:57]} {[%emt 00:00:23]} 5. O-O {[%clk 01:30:18]} {[%emt 00:00:20]}
d5 {[%clk 01:29:09]} {[%emt 00:02:19]} 6. c4 {[%clk 01:28:27]} {[%emt
00:02:20]} Be7 {[%clk 01:27:52]} {[%emt 00:01:47]} 7. cxd5 {[%clk 01:27:56]}
{[%emt 00:01:01]} exd5 {[%clk 01:27:57]} {[%emt 00:00:26]} 8. Nc3 {[%clk
01:27:59]} {[%emt 00:00:26]} O-O {[%clk 01:27:52]} {[%emt 00:00:35]} 9. Bf4
{[%clk 01:28:03]} {[%emt 00:00:25]} c6 {[%clk 01:25:21]} {[%emt 00:03:02]} 10.
Qb3 {[%clk 01:24:42]} {[%emt 00:03:51]} b5 {[%clk 01:21:37]} {[%emt 00:04:15]}
11. Rfc1 {[%clk 01:14:06]} {[%emt 00:11:05]} b4 {[%clk 01:12:37]} {[%emt
00:09:31]} 12. a3 {[%clk 01:11:31]} {[%emt 00:03:04]} bxc3 {[%clk 00:55:12]}
{[%emt 00:17:56]} 13. Qxb7 {[%clk 01:11:29]} {[%emt 00:00:32]} Qb6 {[%clk
00:54:40]} {[%emt 00:01:01]} 14. Qxb6 {[%clk 01:11:09]} {[%emt 00:00:51]} axb6
{[%clk 00:55:09]} {[%emt 00:00:01]} 15. Rxc3 {[%clk 01:10:54]} {[%emt
00:00:44]} c5 {[%clk 00:54:16]} {[%emt 00:01:24]} 16. Rb3 {[%clk 01:04:52]}
{[%emt 00:06:32]} Nbd7 {[%clk 00:52:00]} {[%emt 00:02:45]} 17. Ne5 {[%clk
01:02:02]} {[%emt 00:03:20]} Rac8 {[%clk 00:29:19]} {[%emt 00:23:11]} 18. Bh3
{[%clk 01:00:57]} {[%emt 00:01:35]} Rfd8 {[%clk 00:28:17]} {[%emt 00:01:33]} 19.
Bg5 {[%clk 01:01:17]} {[%emt 00:00:10]} 1-0